bitfinex-derivatives/quotes_SOLF0:USTF0_20250905
["timestamp","ask_amount","ask_price","bid_price","bid_amount"]
[1757091710916,0.033424,203.6,203.57,4.4206]
[1757091711313,0.033424,203.6,203.58,7.49]
[1757091711518,0.033424,203.6,203.59,9.65183144]
[1757091712822,0.033424,203.6,203.59,14.07213144]
[1757091713717,0.033424,203.6,203.59,9.65183144]
[1757091714924,0.033424,203.6,203.59,7.49]
[1757091715619,0.033424,203.6,203.57,9.65183144]
[1757091716923,0.033424,203.6,203.57,2.16183144]
[1757091717123,0.033424,203.6,203.58,7.49]
[1757091717525,0.033424,203.6,203.57,7.49]
[1757091717721,0.033424,203.6,203.57,2.16183144]
[1757091717926,0.033424,203.6,203.58,7.49]
[1757091718126,0.033424,203.6,203.57,7.49]
[1757091719424,0.033424,203.6,203.59,7.49]
[1757091719819,0.033424,203.6,203.57,7.49]
[1757091720020,0.033424,203.6,203.56,0.03711589]
[1757091720021,7.97,203.59,203.56,0.03711589]
[1757091720530,10.13183144,203.59,203.56,0.03711589]
[1757091720724,7.97,203.58,203.56,0.03711589]
[1757091720930,2.16183144,203.59,203.56,0.03711589]
[1757091721128,7.97,203.58,203.56,0.03711589]
[1757091722026,10.13183144,203.57,203.56,0.03711589]
[1757091723028,8.003424,203.6,203.56,0.03711589]
[1757091723221,2.16183144,203.59,203.56,0.03711589]
[1757091723426,8.003424,203.6,203.56,7.52711589]
[1757091724033,8.003424,203.6,203.57,7.49]
[1757091724233,0.033424,203.6,203.56,2.19894733]
[1757091724437,0.033424,203.6,203.59,7.49]
[1757091725636,0.033424,203.6,203.58,2.16183144]
[1757091725837,0.033424,203.6,203.58,9.65183144]
[1757091726237,0.033424,203.6,203.59,7.49]
[1757091728639,5.50839419,203.71,203.59,7.49]
[1757091728839,7.07983144,203.7,203.64,2.16183144]
[1757091730042,7.97,203.69,203.65,0.03561043]
[1757091730238,2.16183144,203.68,203.65,0.03561043]
[1757091730445,7.97,203.67,203.65,0.03561043]
[1757091730640,10.13183144,203.66,203.65,0.03561043]
[1757091731044,15.04983144,203.66,203.65,0.03561043]
[1757091731548,15.54983144,203.66,203.55,9.65183144]
[1757091731740,2.16183144,203.61,203.55,7.49]
[1757091731938,2.16183144,203.61,203.53,2.16183144]
[1757091731939,2.16183144,203.59,203.53,2.16183144]
[1757091732141,2.16183144,203.57,203.51,7.49]
[1757091732743,8.00237108,203.56,203.51,7.49]
[1757091735347,10.16420252,203.56,203.51,7.49]
[1757091735554,0.03237108,203.56,203.51,7.49]
[1757091735750,7.97,203.55,203.48,7.49]
[1757091737662,7.97,203.55,203.49,0.03346649]
[1757091737948,18.39639419,203.55,203.49,0.03346649]
[1757091738349,12.888,203.55,203.49,0.03346649]
[1757091739252,0.03237108,203.56,203.5,7.7]
[1757091739955,0.03237108,203.56,203.5,5.40997697]
[1757091740347,0.03237108,203.56,203.51,7.7]
[1757091741355,0.03237108,203.56,203.52,4.4217]
[1757091741550,0.03237108,203.56,203.53,7.7]
[1757091741858,0.03237108,203.56,203.52,4.4217]
[1757091742056,0.03237108,203.56,203.5,9.83227697]
[1757091742355,0.03237108,203.56,203.51,7.7]
[1757091742752,0.03237108,203.56,203.5,9.83227697]
[1757091742955,0.03237108,203.56,203.51,7.7]
[1757091743452,0.03237108,203.56,203.5,9.83227697]
[1757091743648,0.03237108,203.56,203.51,7.7]
[1757091743854,0.03237108,203.56,203.5,9.83227697]
[1757091744359,0.03237108,203.56,203.51,7.7]
[1757091744748,0.03237108,203.56,203.52,7.7]
[1757091744952,0.03237108,203.56,203.51,4.4219]
[1757091745348,0.03237108,203.56,203.52,7.7]
[1757091745750,0.03237108,203.56,203.51,4.4219]
[1757091746357,0.03237108,203.56,203.52,7.7]
[1757091746953,0.03237108,203.56,203.51,4.4219]
[1757091747560,0.03237108,203.56,203.5,5.40997697]
[1757091748160,0.03237108,203.56,203.51,7.7]
[1757091748964,0.03237108,203.56,203.5,5.40997697]
[1757091749660,0.03237108,203.56,203.5,7.7]
[1757091750864,7.94,203.55,203.49,0.03346649]
[1757091751067,13.34997697,203.55,203.49,0.03346649]
[1757091751268,18.26797697,203.55,203.49,0.03346649]
[1757091751558,12.858,203.55,203.49,0.03346649]
[1757091751769,12.858,203.55,203.49,7.73346649]
[1757091751969,0.03237108,203.56,203.49,7.73346649]
[1757091753871,0.03237108,203.56,203.5,7.7]
[1757091754966,0.03237108,203.56,203.54,7.7]
[1757091755162,0.03237108,203.56,203.5,7.7]
[1757091755869,0.03237108,203.56,203.51,4.422]
[1757091756661,0.03237108,203.56,203.52,7.7]
[1757091756869,0.03237108,203.56,203.51,4.422]
[1757091757271,0.03237108,203.56,203.5,7.7]
[1757091758468,7.94,203.55,203.49,0.03346649]
[1757091758668,4.918,203.54,203.49,0.03346649]
[1757091759068,7.94,203.53,203.49,0.03346649]
[1757091759276,4.918,203.54,203.49,0.03346649]
[1757091760071,7.94,203.53,203.49,0.03346649]
[1757091760471,7.94,203.53,203.49,7.73346649]
[1757091761168,0.03237108,203.56,203.49,7.73346649]
[1757091762577,7.94,203.53,203.49,7.73346649]
[1757091762765,4.918,203.54,203.5,7.7]
[1757091763070,4.918,203.54,203.49,0.03346649]
[1757091763374,7.94,203.53,203.49,0.03346649]
[1757091765574,5.50839419,203.55,203.49,0.03346649]
[1757091765772,7.94,203.54,203.49,0.03346649]
[1757091766669,5.50839419,203.55,203.49,0.03346649]
[1757091766872,7.94,203.54,203.49,0.03346649]
[1757091767273,7.94,203.55,203.49,0.03346649]
[1757091770276,4.918,203.54,203.49,0.03346649]
[1757091770471,4.918,203.52,203.49,0.03346649]
[1757091770881,7.87,203.51,203.49,0.03346649]
[1757091771080,4.918,203.52,203.49,0.03346649]
[1757091771379,7.87,203.51,203.49,0.03346649]
[1757091772378,4.918,203.52,203.49,0.03346649]
[1757091772681,12.788,203.52,203.49,0.03346649]
[1757091772987,4.918,203.52,203.49,0.03346649]
[1757091773681,4.918,203.55,203.49,0.03346649]
[1757091773880,4.918,203.52,203.49,0.03346649]
[1757091774079,7.87,203.51,203.49,0.03346649]
[1757091774383,7.87,203.5,203.49,0.03346649]
[1757091778388,12.788,203.5,203.49,0.03346649]
[1757091778589,13.288,203.5,203.49,0.03346649]
[1757091779688,12.788,203.5,203.49,0.03346649]
[1757091781286,7.9074181,203.52,203.49,0.03346649]
[1757091781491,4.918,203.51,203.49,7.52346649]
[1757091781692,12.788,203.51,203.49,0.03346649]
[1757091781883,12.788,203.5,203.49,0.03346649]
[1757091784391,13.288,203.5,203.34,7.49]
[1757091784593,12.788,203.5,203.34,7.49]
[1757091785491,12.788,203.5,203.34,11.9156]
[1757091785795,0.03419434,203.44,203.35,7.49]
[1757091786094,0.03419434,203.44,203.35,11.9154]
[1757091786293,0.03419434,203.44,203.36,7.49]
[1757091786794,0.03419434,203.44,203.33,7.49]
[1757091787195,0.03419434,203.44,203.37,4.4249]
[1757091787396,0.03419434,203.44,203.38,7.49]
[1757091789087,7.90419434,203.44,203.4,7.49]
[1757091790096,0.03419434,203.44,203.39,0.03395651]
[1757091790595,0.03419434,203.44,203.4,7.49]
[1757091790791,0.03419434,203.44,203.39,0.03395651]
[1757091791192,0.03419434,203.44,203.4,7.49]
[1757091791395,7.90419434,203.44,203.4,7.49]
[1757091792194,7.87,203.43,203.39,0.03395651]
[1757091792596,7.87,203.43,203.39,7.52395651]
[1757091793000,7.90419434,203.44,203.4,7.49]
[1757091795499,7.87,203.43,203.4,7.49]
[1757091795901,7.90419434,203.44,203.4,7.49]
[1757091797007,0.03419434,203.44,203.39,0.03395651]
[1757091797300,7.90419434,203.44,203.4,7.49]
[1757091798298,0.03419434,203.44,203.4,7.49]
[1757091798497,7.84419434,203.44,203.4,7.49]
[1757091798893,7.81,203.43,203.39,0.03395651]
[1757091799295,0.03419434,203.44,203.39,0.03395651]
[1757091799497,3.41917901,203.44,203.39,0.03395651]
[1757091799807,7.81,203.4,203.39,0.03395651]
[1757091800899,5.54258853,203.44,203.39,0.03395651]
[1757091800900,0.03419434,203.44,203.4,7.88]
[1757091801101,0.03419434,203.44,203.39,0.03395651]
[1757091802006,0.03419434,203.44,203.4,7.88]
[1757091802802,0.03419434,203.44,203.39,0.03395651]
[1757091803208,0.03419434,203.44,203.4,7.88]
[1757091803605,0.03419434,203.44,203.39,0.03395651]
[1757091804004,7.84419434,203.44,203.39,0.03395651]
[1757091804208,0.03419434,203.44,203.39,0.03395651]
[1757091804410,7.81,203.43,203.39,0.03395651]
[1757091804712,3.41917901,203.44,203.39,0.03395651]
[1757091804907,7.81,203.43,203.39,0.03395651]
[1757091805105,3.41917901,203.44,203.39,0.03395651]
[1757091805508,7.81,203.43,203.39,0.03395651]
[1757091805707,3.41917901,203.44,203.39,0.03395651]
[1757091806106,7.81,203.43,203.39,0.03395651]
[1757091806308,3.41917901,203.44,203.39,0.03395651]
[1757091806510,8.9275732,203.44,203.39,0.03395651]
[1757091806813,7.81,203.4,203.39,0.03395651]
[1757091809915,3.38498467,203.41,203.39,0.03395651]
[1757091810112,4.918,203.43,203.39,7.91395651]
[1757091810313,4.918,203.43,203.39,0.03395651]
[1757091810515,7.81,203.42,203.39,0.03395651]
[1757091811120,4.918,203.43,203.39,0.03395651]
[1757091811319,7.81,203.42,203.39,0.03395651]
[1757091811521,3.38498467,203.41,203.39,0.03395651]
[1757091811821,7.81,203.4,203.39,0.03395651]
[1757091812023,7.81,203.4,203.31,7.88]
[1757091812218,3.38498467,203.37,203.31,7.88]
[1757091813317,0.03286956,203.36,203.26,7.88]
[1757091813522,2.20119544,203.36,203.29,2.16832588]
[1757091813819,2.20119544,203.36,203.3,7.88]
[1757091814622,2.16832588,203.34,203.3,7.88]
[1757091814812,2.16832588,203.34,203.29,7.88]
[1757091815016,2.16832588,203.34,203.28,2.16832588]
[1757091815212,2.20119544,203.36,203.29,7.88]
[1757091817619,0.03286956,203.36,203.31,7.88]
[1757091817817,0.03286956,203.36,203.32,2.16832588]
[1757091818125,0.03286956,203.36,203.33,7.88]
[1757091818819,0.03286956,203.36,203.32,2.16832588]
[1757091819520,0.03286956,203.36,203.32,6.59442588]
[1757091819726,0.03286956,203.36,203.35,7.88]
[1757091821825,0.03286956,203.36,203.33,7.88]
[1757091822224,0.03286956,203.36,203.32,2.16832588]
[1757091822524,0.03286956,203.36,203.33,7.88]
[1757091823122,0.03286956,203.36,203.35,7.88]
[1757091823615,0.03286956,203.36,203.3,2.16832588]
[1757091823815,0.03286956,203.36,203.31,7.88]
[1757091824018,0.03286956,203.36,203.3,2.16832588]
[1757091824616,0.03286956,203.36,203.31,7.88]
[1757091824824,0.03286956,203.36,203.3,2.16832588]
[1757091825220,0.03286956,203.36,203.3,10.04832588]
[1757091825416,0.03286956,203.36,203.29,4.4267]
[1757091825417,2.16832588,203.31,203.25,10.04832588]
[1757091825822,2.16832588,203.31,203.25,7.88]
[1757091826023,0.03668065,203.3,203.25,7.88]
[1757091826215,0.03668065,203.3,203.24,2.16832588]
[1757091826419,0.03668065,203.3,203.25,7.88]
[1757091826620,0.03668065,203.3,203.24,2.16832588]
[1757091826827,0.03668065,203.3,203.25,7.88]
[1757091827728,0.03668065,203.3,203.24,10.04832588]
[1757091828030,0.03668065,203.3,203.24,14.47612588]
[1757091828832,0.03668065,203.3,203.26,2.16832588]
[1757091829031,0.03668065,203.3,203.29,7.67]
[1757091829528,4.918,203.36,203.29,7.67]
[1757091829735,5.50839419,203.41,203.34,7.67]
[1757091830024,2.16832588,203.4,203.34,7.67]
[1757091830631,0.03373777,203.39,203.34,7.67]
[1757091830830,0.03373777,203.39,203.33,6.59422588]
[1757091831132,0.03373777,203.39,203.33,14.26422588]
[1757091831531,0.03373777,203.39,203.33,12.0959]
[1757091831729,0.03373777,203.39,203.34,4.4256]
[1757091832426,0.03373777,203.39,203.35,7.67]
[1757091832621,0.03373777,203.39,203.34,4.4256]
[1757091833231,0.03373777,203.39,203.35,7.67]
[1757091833930,0.03373777,203.39,203.34,4.4256]
[1757091834128,0.03373777,203.39,203.35,7.67]
[1757091834329,0.03373777,203.39,203.34,4.4256]
[1757091834830,0.03373777,203.39,203.35,7.67]
[1757091835933,0.03373777,203.39,203.34,4.4256]
[1757091836230,0.03373777,203.39,203.35,7.67]
[1757091836423,0.03373777,203.39,203.34,4.4256]
[1757091836626,0.03373777,203.39,203.35,7.67]
[1757091836824,0.03373777,203.39,203.34,4.4256]
[1757091837229,0.03373777,203.39,203.35,7.67]
[1757091837932,0.03373777,203.39,203.36,7.67]
[1757091838132,0.03373777,203.39,203.33,7.67]
[1757091838637,0.03373777,203.39,203.34,4.4257]
[1757091838836,0.03373777,203.39,203.32,5.41798647]
[1757091839137,0.03373777,203.39,203.31,7.67]
[1757091839831,0.03373777,203.39,203.37,7.67]
[1757091840031,0.03373777,203.39,203.36,4.4252]
[1757091840230,0.03373777,203.39,203.31,7.67]
[1757091840431,0.03373777,203.39,203.31,98.18]
[1757091840638,0.03373777,203.39,203.32,7.67]
[1757091840932,0.03373777,203.39,203.34,4.4257]
[1757091841130,0.03373777,203.39,203.32,7.67]
[1757091841833,0.03373777,203.39,203.37,7.67]
[1757091842137,0.03373777,203.39,203.32,13.08798647]
[1757091842337,0.03373777,203.39,203.32,5.41798647]
[1757091842538,0.03373777,203.39,203.33,7.67]
[1757091843839,0.03373777,203.39,203.36,4.4252]
[1757091844440,0.03373777,203.39,203.37,7.67]
[1757091845939,0.03373777,203.39,203.31,7.67]
[1757091846341,0.03373777,203.39,203.35,7.67]
[1757091846538,7.44,203.38,203.31,7.67]
[1757091847350,12.94839419,203.38,203.31,7.67]
[1757091848049,12.94839419,203.38,203.29,4.4268]
[1757091848848,5.50839419,203.37,203.29,4.4268]
[1757091849144,12.85798647,203.36,203.28,7.67]
[1757091849346,18.36638066,203.36,203.28,7.67]
[1757091849548,12.358,203.34,203.22,7.67]
[1757091849847,7.44,203.31,203.3,0.03645041]
[1757091850150,12.358,203.31,203.24,7.67]
[1757091851244,17.86639419,203.31,203.24,7.67]
[1757091851447,2.1699368,203.28,203.24,7.67]
[1757091851646,9.6099368,203.28,203.24,7.67]
[1757091852052,2.20272068,203.28,203.23,7.67]
[1757091852251,2.20272068,203.28,203.24,7.67]
[1757091852444,0.03278388,203.28,203.24,7.67]
[1757091852651,0.03278388,203.28,203.22,2.1699368]
[1757091852855,0.03278388,203.28,203.22,68.8863]
[1757091853152,0.03278388,203.28,203.27,7.67]
[1757091854254,7.67833099,203.37,203.27,7.67]
[1757091854459,7.67833099,203.37,203.3,9.8399368]
[1757091854661,12.59633099,203.37,203.3,9.8399368]
[1757091854954,4.918,203.37,203.33,7.67]
[1757091855154,76.12224122,203.38,203.32,6.5960368]
[1757091855459,0.03238922,203.37,203.32,12.0961]
[1757091855661,0.03238922,203.37,203.32,4.4261]
[1757091855862,0.03238922,203.37,203.33,7.67]
[1757091856061,0.03238922,203.37,203.32,4.4261]
[1757091856462,0.03238922,203.37,203.34,7.67]
[1757091859156,0.03238922,203.37,203.31,4.4263]
[1757091859465,0.03238922,203.37,203.3,7.63]
[1757091860068,0.03238922,203.37,203.35,7.63]
[1757091860261,7.88,203.36,203.29,7.63]
[1757091860461,0.03238922,203.37,203.29,7.63]
[1757091860661,0.03238922,203.37,203.3,4.4265]
[1757091860864,0.03238922,203.37,203.31,7.63]
[1757091862363,0.03238922,203.37,203.34,4.4256]
[1757091862565,0.03238922,203.37,203.31,7.63]
[1757091863257,0.03238922,203.37,203.35,4.4254]
[1757091863465,0.03238922,203.37,203.36,7.63]
[1757091864570,5.50839419,203.45,203.38,12.0548]
[1757091865070,13.38839419,203.45,203.38,7.63]
[1757091865572,13.38839419,203.45,203.39,0.03515774]
[1757091866570,5.50839419,203.44,203.39,0.03515774]
[1757091866772,7.88,203.43,203.39,0.03515774]
[1757091867173,5.50839419,203.45,203.39,7.66515774]
[1757091867372,5.50839419,203.46,203.39,7.66515774]
[1757091868868,5.50839419,203.46,203.4,4.4243]
[1757091869370,13.38839419,203.47,203.4,4.4243]
[1757091870072,13.38839419,203.47,203.39,7.66515774]
[1757091870770,18.30639419,203.47,203.39,7.66515774]
[1757091871976,18.30639419,203.47,203.39,12.08975774]
[1757091872369,5.50839419,203.46,203.39,12.08975774]
[1757091872573,7.88,203.45,203.39,0.03515774]
[1757091872876,7.88,203.4,203.39,0.03515774]
[1757091873377,5.50839419,203.41,203.39,0.03515774]
[1757091873572,13.38839419,203.42,203.39,0.03515774]
[1757091874781,5.50839419,203.43,203.4,7.63]
[1757091874980,18.30639419,203.44,203.4,7.63]
[1757091875478,7.88,203.43,203.39,0.03515774]
[1757091875675,7.88,203.43,203.39,7.66515774]
[1757091875881,7.88,203.43,203.4,7.63]
[1757091876079,5.50839419,203.45,203.39,0.03515774]
[1757091876280,5.50839419,203.46,203.39,0.03515774]
[1757091876481,5.50839419,203.47,203.4,7.63]
[1757091876980,5.50839419,203.47,203.4,12.0543]
[1757091877276,5.50839419,203.47,203.4,7.63]
[1757091877683,5.50839419,203.47,203.41,4.4241]
[1757091878280,5.50839419,203.48,203.41,4.4241]
[1757091880182,10.42639419,203.48,203.4,7.63]
[1757091880386,12.798,203.47,203.4,7.63]
[1757091880584,18.30639419,203.47,203.4,7.63]
[1757091880783,12.798,203.47,203.4,7.63]
[1757091880979,7.88,203.47,203.4,7.63]
[1757091881485,7.88,203.47,203.4,12.0543]
[1757091881874,7.88,203.47,203.41,4.4241]
[1757091882883,4.918,203.49,203.43,7.63]
[1757091883585,4.918,203.49,203.44,0.03615788]
[1757091884179,7.88,203.48,203.44,0.03615788]
[1757091884385,13.38839419,203.48,203.44,0.03615788]
[1757091884586,7.88,203.48,203.44,0.03615788]
[1757091884885,5.50839419,203.49,203.44,0.03615788]
[1757091885085,7.88,203.48,203.44,0.03615788]
[1757091885881,5.50839419,203.49,203.44,0.03615788]
[1757091886281,7.88,203.48,203.44,0.03615788]
[1757091886687,4.918,203.47,203.44,0.03615788]
[1757091886986,7.88,203.45,203.44,0.03615788]
[1757091887677,8.38,203.45,203.44,0.03615788]
[1757091887884,18.80639419,203.45,203.44,0.03615788]
[1757091888083,18.80639419,203.45,203.34,7.63]
[1757091888284,12.418,203.41,203.26,7.88]
[1757091888483,12.418,203.41,203.28,7.88]
[1757091888681,12.418,203.41,203.31,7.88]
[1757091889485,7.5345374,203.38,203.31,7.88]
[1757091890188,7.5345374,203.38,203.31,12.3062]
[1757091890585,7.5345374,203.38,203.31,7.88]
[1757091890985,0.0345374,203.38,203.3,7.88]
[1757091891887,0.0345374,203.38,203.33,4.4258]
[1757091892185,0.0345374,203.38,203.3,7.88]
[1757091892787,0.0345374,203.38,203.34,4.4256]
[1757091892986,0.0345374,203.38,203.35,7.88]
[1757091893384,0.0345374,203.38,203.34,4.4256]
[1757091893583,0.0345374,203.38,203.35,4.4254]
[1757091893780,0.0345374,203.38,203.36,7.88]
[1757091894492,0.0345374,203.38,203.37,7.88]
[1757091895490,0.0345374,203.38,203.35,7.88]
[1757091896282,0.0345374,203.38,203.32,12.3061]
[1757091899992,0.0345374,203.38,203.32,7.88]
[1757091900495,7.5,203.37,203.32,7.88]
[1757091900793,5.54293159,203.38,203.32,7.88]
[1757091900997,13.04293159,203.38,203.32,7.88]
[1757091901290,0.0345374,203.38,203.32,7.88]
[1757091903294,5.50839419,203.45,203.34,7.88]
[1757091903600,5.50839419,203.46,203.36,7.88]
[1757091904095,5.50839419,203.47,203.37,7.88]
[1757091904396,10.42639419,203.47,203.37,7.88]
[1757091904598,12.418,203.47,203.37,7.88]
[1757091905099,12.418,203.47,203.38,4.4249]
[1757091905286,12.418,203.47,203.36,76.7174]
[1757091905491,17.92639419,203.47,203.37,7.88]
[1757091905992,17.92639419,203.47,203.39,4.4245]
[1757091906187,10.42639419,203.47,203.4,7.91119186]
[1757091906792,10.42639419,203.47,203.41,4.4242]
[1757091906995,4.918,203.47,203.42,7.88]
[1757091907192,17.92639419,203.47,203.4,0.03119186]
[1757091907397,4.918,203.45,203.4,0.03119186]
[1757091907593,7.5,203.44,203.4,7.91119186]
[1757091908094,7.5,203.43,203.4,0.03119186]
[1757091908299,7.5,203.44,203.4,0.03119186]
[1757091908494,5.50839419,203.42,203.4,0.03119186]
[1757091908693,7.5,203.41,203.4,0.03119186]
[1757091908993,17.92639419,203.41,203.4,0.03119186]
[1757091909294,17.92639419,203.41,203.19,74.36710873]
[1757091909295,4.918,203.39,203.27,7.88]
[1757091909499,13.01133834,203.38,203.27,7.88]
[1757091910399,0.03685046,203.35,203.27,7.88]
[1757091914406,7.53685046,203.35,203.27,7.88]
[1757091914796,7.53685046,203.35,203.29,0.03373275]
[1757091917094,7.53685046,203.35,203.29,7.91373275]
[1757091919999,0.03685046,203.35,203.29,7.91373275]
[1757091921405,0.03685046,203.35,203.29,0.03373275]
[1757091921603,7.56,203.34,203.29,0.03373275]
[1757091921802,0.03685046,203.35,203.29,0.03373275]
[1757091922002,7.56,203.34,203.29,0.03373275]
[1757091922403,7.59685046,203.35,203.29,0.03373275]
[1757091922598,0.03685046,203.35,203.29,7.64373275]
[1757091923003,7.59685046,203.35,203.29,0.03373275]
[1757091925402,5.51133834,203.34,203.29,0.03373275]
[1757091925607,7.56,203.31,203.29,0.03373275]
[1757091925804,12.478,203.3,203.29,0.03373275]
[1757091926010,12.978,203.3,203.29,0.03373275]
[1757091928307,12.978,203.3,203.16,4.4296]
[1757091928508,4.918,203.27,203.15,7.61]
[1757091928708,4.918,203.25,203.15,7.61]
[1757091929012,12.478,203.24,203.15,7.61]
[1757091929607,0.03343298,203.22,203.15,7.61]
[1757091930515,0.03343298,203.22,203.15,12.0398]
[1757091932407,0.03343298,203.22,203.15,7.61]
[1757091932611,7.56,203.21,203.15,7.61]
[1757091934212,7.56,203.21,203.11,4.4307]
[1757091934408,7.56,203.21,203.11,12.0407]
[1757091934609,7.56,203.21,203.11,7.61]
[1757091934912,0.03535652,203.18,203.11,7.61]
[1757091935113,0.03535652,203.18,203.12,4.4305]
[1757091935306,0.03535652,203.18,203.11,7.61]
[1757091935711,0.03535652,203.18,203.1,7.61]
[1757091936212,0.03535652,203.18,203.08,68.9337]
[1757091936404,0.03535652,203.18,203.09,7.61]
[1757091936809,0.03535652,203.18,203.13,7.61]
[1757091937013,0.03535652,203.18,203.12,12.0404]
[1757091937917,0.03535652,203.18,203.11,7.61]
[1757091939611,0.03535652,203.18,203.14,7.61]
[1757091939805,0.03535652,203.18,203.13,2.17178419]
[1757091940007,0.03535652,203.18,203.14,7.61]
[1757091940512,9.76714071,203.18,203.14,7.61]
[1757091941211,9.76714071,203.18,203.12,9.78178419]
[1757091941513,9.76714071,203.18,203.12,14.21218419]
[1757091941710,0.03535652,203.18,203.15,7.61]
[1757091942216,0.03535652,203.18,203.17,7.61]
[1757091942817,0.03535652,203.18,203.17,12.0395]
[1757091945916,0.03535652,203.18,203.17,7.61]
[1757091946522,0.03535652,203.18,203.13,2.17178419]
[1757091946921,0.03535652,203.18,203.14,7.61]
[1757091947626,0.03535652,203.18,203.13,2.17178419]
[1757091947820,0.03535652,203.18,203.14,7.61]
[1757091948217,0.03535652,203.18,203.14,8.07]
[1757091948526,0.03535652,203.18,203.13,6.60198419]
[1757091948922,0.03535652,203.18,203.14,8.07]
[1757091949622,7.70535652,203.18,203.14,8.07]
[1757091949822,0.03535652,203.18,203.14,8.07]
[1757091950022,0.03535652,203.18,203.13,6.60198419]
[1757091950219,0.03535652,203.18,203.14,4.43]
[1757091950423,0.03535652,203.18,203.16,8.07]
[1757091950826,0.03535652,203.18,203.15,2.17178419]
[1757091951323,0.03535652,203.18,203.15,6.60158419]
[1757091951520,0.03535652,203.18,203.15,2.17178419]
[1757091951723,0.03535652,203.18,203.17,8.07]
[1757091952231,0.03535652,203.18,203.17,10.24178419]
[1757091953427,0.03535652,203.18,203.16,4.4295]
[1757091953428,0.03535652,203.18,203.09,8.07]
[1757091953730,0.03535652,203.18,203.03,68.948]
[1757091953731,0.03535652,203.18,203.11,10.24178419]
[1757091953930,0.03535652,203.18,203.11,8.07]
[1757091954128,0.03535652,203.18,203.11,10.24178419]
[1757091954330,4.95335652,203.18,203.12,2.17178419]
[1757091955031,4.95335652,203.18,203.11,10.24178419]
[1757091956022,4.95335652,203.18,203.11,8.07]
[1757091956332,4.95335652,203.18,203.11,10.24178419]
[1757091956931,4.95335652,203.18,203.11,14.67238419]
[1757091957928,12.62335652,203.18,203.14,8.07]
[1757091958134,4.95335652,203.18,203.11,8.07]
[1757091958323,4.95335652,203.18,203.11,10.24178419]
[1757091959934,4.95335652,203.18,203.11,8.07]
[1757091960134,4.95335652,203.18,203.11,10.24178419]
[1757091960428,4.95335652,203.18,203.13,2.17178419]
[1757091960634,0.03535652,203.18,203.13,2.17178419]
[1757091960837,0.03535652,203.18,203.14,8.07]
[1757091961035,7.67,203.17,203.11,10.24178419]
[1757091961232,4.95335652,203.18,203.11,10.24178419]
[1757091961635,4.95335652,203.18,203.13,2.17178419]
[1757091961934,4.95335652,203.18,203.14,8.07]
[1757091962634,0.03535652,203.18,203.13,2.17178419]
[1757091963028,0.03535652,203.18,203.14,8.07]
[1757091963338,0.03535652,203.18,203.17,10.24178419]
[1757091965140,0.03535652,203.18,203.17,8.07]
[1757091965344,0.03535652,203.18,203.17,10.24178419]
[1757091965934,0.03535652,203.18,203.17,8.07]
[1757091966537,0.03535652,203.18,203.14,2.17178419]
[1757091966732,0.03535652,203.18,203.15,8.07]
[1757091967330,2.17178419,203.17,203.12,8.07]
[1757091967537,2.17178419,203.15,203.06,8.07]
[1757091967833,0.03281171,203.13,203.07,2.17178419]
[1757091968032,0.03281171,203.13,203.07,8.07]
[1757091968338,2.2045959,203.13,203.07,8.07]
[1757091968842,2.2045959,203.13,203.07,12.5015]
[1757091969841,10.42933834,203.19,203.13,8.07]
[1757091970038,7.67,203.22,203.18,2.17178419]
[1757091970240,5.51133834,203.21,203.18,2.17178419]
[1757091970644,5.51133834,203.21,203.17,2.17178419]
[1757091970836,5.51133834,203.21,203.18,8.07]
[1757091971031,5.54774897,203.21,203.18,8.07]
[1757091972039,5.54774897,203.21,203.14,8.07]
[1757091972040,5.51133834,203.2,203.14,8.07]
[1757091972237,13.18133834,203.19,203.14,8.07]
[1757091972434,5.51133834,203.19,203.13,5.42715621]
[1757091972736,0.03204702,203.19,203.16,5.42715621]